[Event "Titled Tuesday Blitz April 26 Early 2022"]
[White "Terry, Renato"]
[Black "Vasquez Schroeder, Rodrigo"]
[WhiteFideId "3803457"]
[BlackFideId "3400042"]
[WhiteElo "2577"]
[BlackElo "2561"]
[Result "1-0"]
[Round "08"]
[TimeControl "180+1"]
[Date "2022.04.26"]
[WhiteClock "0:00:02"]
[BlackClock "0:00:01"]

1. d4 {[%clk 0:03:00]}  Nf6 {[%clk 0:02:57]} 2. Bg5 {[%clk 0:03:01]}  e6 {[%clk 0:02:57]} 3. e4 {[%clk 0:03:00]}  h6 {[%clk 0:02:57]} 4. Bxf6 {[%clk 0:03:01]}  Qxf6 {[%clk 0:02:58]} 5. c3 {[%clk 0:03:01]}  d6 {[%clk 0:02:56]} 6. Bd3 {[%clk 0:03:02]}  e5 {[%clk 0:02:55]} 7. Ne2 {[%clk 0:03:02]}  g6 {[%clk 0:02:54]} 8. O-O {[%clk 0:03:02]}  Bg7 {[%clk 0:02:54]} 9. f4 {[%clk 0:03:02]}  Qe7 {[%clk 0:02:53]} 10. Nd2 {[%clk 0:03:01]}  Nd7 {[%clk 0:02:53]} 11. Nf3 {[%clk 0:02:55]}  O-O {[%clk 0:02:51]} 12. Qd2 {[%clk 0:02:54]}  c5 {[%clk 0:02:43]} 13. dxe5 {[%clk 0:02:41]}  dxe5 {[%clk 0:02:41]} 14. f5 {[%clk 0:02:41]}  c4 {[%clk 0:02:37]} 15. Bc2 {[%clk 0:02:40]}  Nf6 {[%clk 0:02:37]} 16. h3 {[%clk 0:02:29]}  Rd8 {[%clk 0:02:30]} 17. Qe3 {[%clk 0:02:29]}  b6 {[%clk 0:02:30]} 18. fxg6 {[%clk 0:02:12]}  fxg6 {[%clk 0:02:30]} 19. Nh4 {[%clk 0:02:12]}  Kh7 {[%clk 0:02:26]} 20. Qg3 {[%clk 0:01:42]}  Qe8 {[%clk 0:02:26]} 21. Rad1 {[%clk 0:01:34]}  Rxd1 {[%clk 0:02:02]} 22. Rxd1 {[%clk 0:01:33]}  Nh5 {[%clk 0:02:02]} 23. Qe3 {[%clk 0:01:22]}  Be6 {[%clk 0:02:02]} 24. g4 {[%clk 0:01:08]}  Nf6 {[%clk 0:01:51]} 25. Kg2 {[%clk 0:01:08]}  Qe7 {[%clk 0:01:47]} 26. Nf3 {[%clk 0:01:05]}  Nd7 {[%clk 0:01:48]} 27. Ng3 {[%clk 0:01:01]}  Rf8 {[%clk 0:01:47]} 28. Nf5 {[%clk 0:00:56]}  Qc5 {[%clk 0:01:38]} 29. Qxc5 {[%clk 0:00:51]}  bxc5 {[%clk 0:01:32]} 30. Rd6 {[%clk 0:00:45]}  Re8 {[%clk 0:01:19]} 31. Nxg7 {[%clk 0:00:40]}  Kxg7 {[%clk 0:01:20]} 32. Ba4 {[%clk 0:00:41]}  Re7 {[%clk 0:01:16]} 33. Rxe6 {[%clk 0:00:41]}  Rxe6 {[%clk 0:01:16]} 34. Bxd7 {[%clk 0:00:41]}  Rd6 {[%clk 0:01:16]} 35. Bb5 {[%clk 0:00:33]}  Rb6 {[%clk 0:01:13]} 36. Bxc4 {[%clk 0:00:32]}  Rxb2+ {[%clk 0:01:13]} 37. Kg3 {[%clk 0:00:33]}  Kf6 {[%clk 0:01:13]} 38. Ne1 {[%clk 0:00:30]}  a5 {[%clk 0:01:05]} 39. Bb3 {[%clk 0:00:29]}  a4 {[%clk 0:01:03]} 40. Bxa4 {[%clk 0:00:29]}  Rxa2 {[%clk 0:01:04]} 41. Bb5 {[%clk 0:00:18]}  Ra3 {[%clk 0:01:03]} 42. h4 {[%clk 0:00:15]}  Rxc3+ {[%clk 0:01:03]} 43. Kf2 {[%clk 0:00:16]}  c4 {[%clk 0:00:52]} 44. Nf3 {[%clk 0:00:16]}  Rc2+ {[%clk 0:00:51]} 45. Ke3 {[%clk 0:00:15]}  Rc3+ {[%clk 0:00:47]} 46. Ke2 {[%clk 0:00:14]}  g5 {[%clk 0:00:48]} 47. hxg5+ {[%clk 0:00:13]}  hxg5 {[%clk 0:00:49]} 48. Nd2 {[%clk 0:00:13]}  Rg3 {[%clk 0:00:48]} 49. Nxc4 {[%clk 0:00:12]}  Rxg4 {[%clk 0:00:48]} 50. Bc6 {[%clk 0:00:10]}  Rg2+ {[%clk 0:00:47]} 51. Kf3 {[%clk 0:00:10]}  Rc2 {[%clk 0:00:47]} 52. Bd5 {[%clk 0:00:11]}  Rc3+ {[%clk 0:00:45]} 53. Kg4 {[%clk 0:00:11]}  Rc1 {[%clk 0:00:45]} 54. Ne3 {[%clk 0:00:10]}  Rg1+ {[%clk 0:00:45]} 55. Kf3 {[%clk 0:00:11]}  Ke7 {[%clk 0:00:43]} 56. Kf2 {[%clk 0:00:11]}  Rh1 {[%clk 0:00:41]} 57. Kg2 {[%clk 0:00:11]}  Rb1 {[%clk 0:00:38]} 58. Nf5+ {[%clk 0:00:05]}  Kf6 {[%clk 0:00:37]} 59. Ne3 {[%clk 0:00:06]}  Rb2+ {[%clk 0:00:28]} 60. Kf3 {[%clk 0:00:06]}  Ke7 {[%clk 0:00:27]} 61. Nc4 {[%clk 0:00:06]}  Rb3+ {[%clk 0:00:26]} 62. Kg4 {[%clk 0:00:07]}  Kf6 {[%clk 0:00:22]} 63. Nd6 {[%clk 0:00:07]}  Rb1 {[%clk 0:00:20]} 64. Ne8+ {[%clk 0:00:07]}  Kg6 {[%clk 0:00:19]} 65. Nd6 {[%clk 0:00:08]}  Rg1+ {[%clk 0:00:19]} 66. Kf3 {[%clk 0:00:08]}  Rf1+ {[%clk 0:00:20]} 67. Kg2 {[%clk 0:00:08]}  Rf4 {[%clk 0:00:20]} 68. Nc4 {[%clk 0:00:08]}  Kf6 {[%clk 0:00:19]} 69. Kg3 {[%clk 0:00:08]}  g4 {[%clk 0:00:19]} 70. Kh4 {[%clk 0:00:09]}  Rf1 {[%clk 0:00:14]} 71. Kxg4 {[%clk 0:00:08]}  Rg1+ {[%clk 0:00:14]} 72. Kf3 {[%clk 0:00:08]}  Rf1+ {[%clk 0:00:15]} 73. Ke3 {[%clk 0:00:09]}  Rb1 {[%clk 0:00:15]} 74. Kd3 {[%clk 0:00:09]}  Rd1+ {[%clk 0:00:15]} 75. Ke2 {[%clk 0:00:09]}  Rd4 {[%clk 0:00:15]} 76. Ke3 {[%clk 0:00:10]}  Rd1 {[%clk 0:00:15]} 77. Nd2 {[%clk 0:00:10]}  Re1+ {[%clk 0:00:15]} 78. Kd3 {[%clk 0:00:11]}  Rd1 {[%clk 0:00:15]} 79. Ke2 {[%clk 0:00:11]}  Rc1 {[%clk 0:00:15]} 80. Nf1 {[%clk 0:00:11]}  Ke7 {[%clk 0:00:13]} 81. Ne3 {[%clk 0:00:11]}  Kd6 {[%clk 0:00:12]} 82. Nc4+ {[%clk 0:00:10]}  Kc5 {[%clk 0:00:12]} 83. Nxe5 {[%clk 0:00:11]}  Rc2+ {[%clk 0:00:10]} 84. Ke3 {[%clk 0:00:11]}  Rh2 {[%clk 0:00:08]} 85. Nd3+ {[%clk 0:00:11]}  Kd6 {[%clk 0:00:08]} 86. Kd4 {[%clk 0:00:12]}  Rh4 {[%clk 0:00:07]} 87. Ne1 {[%clk 0:00:11]}  Rh1 {[%clk 0:00:06]} 88. Nf3 {[%clk 0:00:11]}  Rd1+ {[%clk 0:00:06]} 89. Kc4 {[%clk 0:00:10]}  Rc1+ {[%clk 0:00:06]} 90. Kd3 {[%clk 0:00:10]}  Rd1+ {[%clk 0:00:07]} 91. Nd2 {[%clk 0:00:10]}  Ke5 {[%clk 0:00:06]} 92. Bb7 {[%clk 0:00:09]}  Kf4 {[%clk 0:00:04]} 93. Ke2 {[%clk 0:00:06]}  Rc1 {[%clk 0:00:04]} 94. Bd5 {[%clk 0:00:04]}  Rc3 {[%clk 0:00:04]} 95. Nf1 {[%clk 0:00:04]}  Ke5 {[%clk 0:00:03]} 96. Nd2 {[%clk 0:00:03]}  Kf4 {[%clk 0:00:03]} 97. Bb7 {[%clk 0:00:03]}  Re3+ {[%clk 0:00:02]} 98. Kd1 {[%clk 0:00:03]}  Rd3 {[%clk 0:00:03]} 99. Kc2 {[%clk 0:00:03]}  Rd7 {[%clk 0:00:03]} 100. Bd5 {[%clk 0:00:02]}  Ke3 {[%clk 0:00:02]} 101. Nb3 {[%clk 0:00:02]}  Rc7+ {[%clk 0:00:01]} 102. Kb2 {[%clk 0:00:02]}  Re7 {[%clk 0:00:02]} 103. Nc5 {[%clk 0:00:02]}  Kd4 {[%clk 0:00:02]} 104. Nb3+ {[%clk 0:00:03]}  Ke3 {[%clk 0:00:02]} 105. Nc5 {[%clk 0:00:01]}  Kd4 {[%clk 0:00:01]} 106. Ne6+ {[%clk 0:00:02]}  Rxe6 {[%clk 0:00:01]} 107. Kc2 {[%clk 0:00:02]} 1-0


[Site "https://www.chess.com"]

[Event "Titled Tuesday Blitz April 26 Early 2022"]
[White "Terzi, Alexei"]
[Black "Lauridsen, Jesper Morch"]
[WhiteFideId "13505076"]
[BlackFideId "1401890"]
[WhiteElo "2031"]
[BlackElo "2286"]
[Result "1-0"]
[Round "08"]
[TimeControl "180+1"]
[Date "2022.04.26"]
[WhiteClock "0:00:45"]
[BlackClock "0:00:01"]

1. e4 {[%clk 0:03:00]}  c5 {[%clk 0:02:59]} 2. Nc3 {[%clk 0:03:00]}  a6 {[%clk 0:02:58]} 3. g3 {[%clk 0:02:59]}  e6 {[%clk 0:02:57]} 4. Bg2 {[%clk 0:03:00]}  b5 {[%clk 0:02:54]} 5. d3 {[%clk 0:02:56]}  Bb7 {[%clk 0:02:53]} 6. f4 {[%clk 0:02:56]}  d5 {[%clk 0:02:45]} 7. Nf3 {[%clk 0:02:54]}  b4 {[%clk 0:02:40]} 8. Ne2 {[%clk 0:02:53]}  dxe4 {[%clk 0:02:40]} 9. Ng5 {[%clk 0:02:50]}  Nf6 {[%clk 0:02:29]} 10. O-O {[%clk 0:02:48]}  Nc6 {[%clk 0:02:18]} 11. Nxe4 {[%clk 0:02:34]}  Nxe4 {[%clk 0:02:14]} 12. Bxe4 {[%clk 0:02:34]}  Qc7 {[%clk 0:02:04]} 13. f5 {[%clk 0:02:33]}  exf5 {[%clk 0:01:45]} 14. Rxf5 {[%clk 0:02:29]}  O-O-O {[%clk 0:01:29]} 15. Bf4 {[%clk 0:02:17]}  Bd6 {[%clk 0:01:28]} 16. Bxd6 {[%clk 0:02:10]}  Rxd6 {[%clk 0:01:11]} 17. Qf1 {[%clk 0:02:10]}  Nd8 {[%clk 0:00:53]} 18. Qf2 {[%clk 0:01:53]}  Bxe4 {[%clk 0:00:43]} 19. dxe4 {[%clk 0:01:54]}  Ne6 {[%clk 0:00:26]} 20. Nf4 {[%clk 0:01:37]}  Nxf4 {[%clk 0:00:13]} 21. Qxf4 {[%clk 0:01:20]}  f6 {[%clk 0:00:13]} 22. Qf2 {[%clk 0:01:20]}  Rc6 {[%clk 0:00:12]} 23. a3 {[%clk 0:01:13]}  bxa3 {[%clk 0:00:10]} 24. Rxa3 {[%clk 0:01:13]}  Rd8 {[%clk 0:00:11]} 25. Rd5 {[%clk 0:01:11]}  Rxd5 {[%clk 0:00:09]} 26. exd5 {[%clk 0:01:12]}  Rb6 {[%clk 0:00:09]} 27. Rc3 {[%clk 0:01:10]}  Rb5 {[%clk 0:00:06]} 28. Qf5+ {[%clk 0:00:56]}  Kb8 {[%clk 0:00:05]} 29. b3 {[%clk 0:00:51]}  Qd6 {[%clk 0:00:05]} 30. Re3 {[%clk 0:00:46]}  Kb7 {[%clk 0:00:04]} 31. Re8 {[%clk 0:00:45]}  Kb6 {[%clk 0:00:01]} 1-0


[Site "https://www.chess.com"]

[Event "Titled Tuesday Blitz April 26 Early 2022"]
[White "Urazayev, Arystanbek"]
[Black "Demchenko, Anton"]
[WhiteFideId "13709810"]
[BlackFideId "4160258"]
[WhiteElo "2422"]
[BlackElo "2539"]
[Result "1-0"]
[Round "08"]
[TimeControl "180+1"]
[Date "2022.04.26"]
[WhiteClock "0:00:54"]
[BlackClock "0:00:11"]

1. e4 {[%clk 0:03:00]}  e5 {[%clk 0:03:00]} 2. Nf3 {[%clk 0:03:01]}  Nc6 {[%clk 0:03:00]} 3. Bb5 {[%clk 0:03:01]}  a6 {[%clk 0:03:01]} 4. Ba4 {[%clk 0:03:02]}  Nge7 {[%clk 0:03:01]} 5. O-O {[%clk 0:03:02]}  Ng6 {[%clk 0:03:01]} 6. Nc3 {[%clk 0:02:56]}  Bc5 {[%clk 0:02:54]} 7. d3 {[%clk 0:02:51]}  O-O {[%clk 0:02:54]} 8. Nd5 {[%clk 0:02:50]}  Nce7 {[%clk 0:02:39]} 9. Bg5 {[%clk 0:02:45]}  f6 {[%clk 0:02:37]} 10. Bb3 {[%clk 0:02:43]}  Nxd5 {[%clk 0:02:29]} 11. Bxd5+ {[%clk 0:02:42]}  Kh8 {[%clk 0:02:29]} 12. Be3 {[%clk 0:02:42]}  d6 {[%clk 0:02:19]} 13. d4 {[%clk 0:02:35]}  Ba7 {[%clk 0:02:19]} 14. c3 {[%clk 0:02:33]}  c6 {[%clk 0:02:05]} 15. Bb3 {[%clk 0:02:32]}  Qe7 {[%clk 0:02:03]} 16. Nd2 {[%clk 0:02:19]}  f5 {[%clk 0:01:35]} 17. exf5 {[%clk 0:02:18]}  Bxf5 {[%clk 0:01:36]} 18. Re1 {[%clk 0:02:14]}  Qf6 {[%clk 0:01:13]} 19. Qh5 {[%clk 0:02:00]}  exd4 {[%clk 0:01:01]} 20. Bg5 {[%clk 0:02:00]}  Nf4 {[%clk 0:00:48]} 21. Qh4 {[%clk 0:01:32]}  Qg6 {[%clk 0:00:26]} 22. Bxf4 {[%clk 0:01:30]}  dxc3 {[%clk 0:00:26]} 23. bxc3 {[%clk 0:01:28]}  Rae8 {[%clk 0:00:25]} 24. Be3 {[%clk 0:01:22]}  Bxe3 {[%clk 0:00:23]} 25. Rxe3 {[%clk 0:01:23]}  Rxe3 {[%clk 0:00:23]} 26. fxe3 {[%clk 0:01:24]}  Bd3 {[%clk 0:00:21]} 27. Bc4 {[%clk 0:01:00]}  h6 {[%clk 0:00:20]} 28. Bxd3 {[%clk 0:00:58]}  Qxd3 {[%clk 0:00:21]} 29. Qd4 {[%clk 0:00:57]}  Qe2 {[%clk 0:00:21]} 30. Rf1 {[%clk 0:00:57]}  Rxf1+ {[%clk 0:00:20]} 31. Nxf1 {[%clk 0:00:58]}  Qxa2 {[%clk 0:00:21]} 32. Qxd6 {[%clk 0:00:58]}  Qb3 {[%clk 0:00:21]} 33. e4 {[%clk 0:00:54]}  Qxc3 {[%clk 0:00:17]} 34. e5 {[%clk 0:00:55]}  a5 {[%clk 0:00:10]} 35. e6 {[%clk 0:00:55]}  Qf6 {[%clk 0:00:11]} 36. Qd7 {[%clk 0:00:54]} 1-0


[Site "https://www.chess.com"]

[Event "Titled Tuesday Blitz April 26 Early 2022"]
[White "Vokhidov, Shamsiddin"]
[Black "Ambartsumova, Karina"]
[WhiteFideId "14204223"]
[BlackFideId "4166299"]
[WhiteElo "2611"]
[BlackElo "2262"]
[Result "0-1"]
[Round "08"]
[TimeControl "180+1"]
[Date "2022.04.26"]
[WhiteClock "0:00:53"]
[BlackClock "0:00:23"]

1. e4 {[%clk 0:03:00]}  e5 {[%clk 0:02:52]} 2. Nf3 {[%clk 0:03:01]}  Nc6 {[%clk 0:02:52]} 3. Bb5 {[%clk 0:03:01]}  a6 {[%clk 0:02:51]} 4. Ba4 {[%clk 0:03:01]}  Nf6 {[%clk 0:02:51]} 5. O-O {[%clk 0:03:01]}  Be7 {[%clk 0:02:51]} 6. d3 {[%clk 0:02:59]}  d6 {[%clk 0:02:49]} 7. c3 {[%clk 0:02:59]}  O-O {[%clk 0:02:49]} 8. Nbd2 {[%clk 0:02:57]}  Re8 {[%clk 0:02:46]} 9. Re1 {[%clk 0:02:57]}  b5 {[%clk 0:02:45]} 10. Bc2 {[%clk 0:02:57]}  Bf8 {[%clk 0:02:44]} 11. Nf1 {[%clk 0:02:57]}  h6 {[%clk 0:02:45]} 12. Ng3 {[%clk 0:02:57]}  g6 {[%clk 0:02:44]} 13. d4 {[%clk 0:02:57]}  Bg7 {[%clk 0:02:45]} 14. h3 {[%clk 0:02:58]}  Bb7 {[%clk 0:02:37]} 15. Bd2 {[%clk 0:02:46]}  Qd7 {[%clk 0:02:11]} 16. Qc1 {[%clk 0:02:36]}  Kh7 {[%clk 0:02:09]} 17. a4 {[%clk 0:02:34]}  Na5 {[%clk 0:01:58]} 18. Rd1 {[%clk 0:02:24]}  Nc4 {[%clk 0:01:52]} 19. Be1 {[%clk 0:02:16]}  exd4 {[%clk 0:01:47]} 20. cxd4 {[%clk 0:02:15]}  Nxe4 {[%clk 0:01:25]} 21. Bxe4 {[%clk 0:02:14]}  Bxe4 {[%clk 0:01:24]} 22. Nxe4 {[%clk 0:02:15]}  Rxe4 {[%clk 0:01:23]} 23. axb5 {[%clk 0:02:10]}  Qxb5 {[%clk 0:01:20]} 24. Qc2 {[%clk 0:01:53]}  Rae8 {[%clk 0:01:16]} 25. b3 {[%clk 0:01:53]}  Nb6 {[%clk 0:01:06]} 26. Qxc7 {[%clk 0:01:53]}  d5 {[%clk 0:00:33]} 27. Qxf7 {[%clk 0:01:41]}  R8e7 {[%clk 0:00:26]} 28. Ng5+ {[%clk 0:01:27]}  hxg5 {[%clk 0:00:26]} 29. Qf3 {[%clk 0:01:28]}  Qe2 {[%clk 0:00:23]} 30. Qg3 {[%clk 0:01:21]}  Bxd4 {[%clk 0:00:22]} 31. Rac1 {[%clk 0:01:15]}  Qxe1+ {[%clk 0:00:21]} 32. Rxe1 {[%clk 0:01:15]}  Rxe1+ {[%clk 0:00:21]} 33. Rxe1 {[%clk 0:00:55]}  Rxe1+ {[%clk 0:00:22]} 34. Kh2 {[%clk 0:00:53]}  Be5 {[%clk 0:00:23]} 0-1


[Site "https://www.chess.com"]

[Event "Titled Tuesday Blitz April 26 Early 2022"]
[White "Winkels, Marcel"]
[Black "Mohammadian, Mohammad"]
[WhiteFideId "1003887"]
[BlackFideId "12566055"]
[WhiteElo "1900"]
[BlackElo "1544"]
[Result "1-0"]
[Round "08"]
[TimeControl "180+1"]
[Date "2022.04.26"]
[WhiteClock "0:01:20"]
[BlackClock "0:00:45"]

1. e4 {[%clk 0:03:00]}  e5 {[%clk 0:02:58]} 2. Nf3 {[%clk 0:03:00]}  Nc6 {[%clk 0:02:57]} 3. Bc4 {[%clk 0:03:00]}  Bc5 {[%clk 0:02:56]} 4. b4 {[%clk 0:02:59]}  Bxb4 {[%clk 0:02:55]} 5. c3 {[%clk 0:03:00]}  Ba5 {[%clk 0:02:54]} 6. d4 {[%clk 0:02:59]}  exd4 {[%clk 0:02:54]} 7. O-O {[%clk 0:02:58]}  dxc3 {[%clk 0:02:51]} 8. Qb3 {[%clk 0:02:57]}  Qf6 {[%clk 0:02:45]} 9. Bg5 {[%clk 0:02:54]}  Qg6 {[%clk 0:02:45]} 10. Nxc3 {[%clk 0:02:51]}  Nf6 {[%clk 0:02:44]} 11. e5 {[%clk 0:02:37]}  Bxc3 {[%clk 0:02:42]} 12. Qxc3 {[%clk 0:02:33]}  Ne4 {[%clk 0:02:36]} 13. Qe3 {[%clk 0:02:28]}  Nxg5 {[%clk 0:02:35]} 14. Nxg5 {[%clk 0:02:28]}  O-O {[%clk 0:02:33]} 15. f4 {[%clk 0:02:27]}  Ne7 {[%clk 0:02:22]} 16. Bd3 {[%clk 0:02:22]}  Qb6 {[%clk 0:02:09]} 17. Bxh7+ {[%clk 0:02:04]}  Kh8 {[%clk 0:02:06]} 18. Qxb6 {[%clk 0:02:03]}  axb6 {[%clk 0:02:05]} 19. Be4 {[%clk 0:02:04]}  Ra4 {[%clk 0:01:59]} 20. Rf3 {[%clk 0:01:58]}  f6 {[%clk 0:01:59]} 21. Rh3+ {[%clk 0:01:51]}  Kg8 {[%clk 0:01:56]} 22. Bc2 {[%clk 0:01:52]}  fxg5 {[%clk 0:01:55]} 23. Bxa4 {[%clk 0:01:50]}  Rxf4 {[%clk 0:01:51]} 24. Bb3+ {[%clk 0:01:48]}  Kf8 {[%clk 0:01:37]} 25. Rh8+ {[%clk 0:01:46]}  Ng8 {[%clk 0:01:33]} 26. Rxg8+ {[%clk 0:01:46]}  Ke7 {[%clk 0:01:33]} 27. Rxc8 {[%clk 0:01:46]}  Re4 {[%clk 0:01:29]} 28. Rxc7 {[%clk 0:01:45]}  Rxe5 {[%clk 0:01:28]} 29. Rxb7 {[%clk 0:01:44]}  Re3 {[%clk 0:01:21]} 30. Rd1 {[%clk 0:01:43]}  Kf6 {[%clk 0:01:18]} 31. Rxb6+ {[%clk 0:01:42]}  Kf5 {[%clk 0:01:15]} 32. Rxd7 {[%clk 0:01:34]}  g6 {[%clk 0:01:14]} 33. Bc2+ {[%clk 0:01:30]}  Kg4 {[%clk 0:01:10]} 34. Rb4+ {[%clk 0:01:24]}  Kh5 {[%clk 0:00:45]} 35. Rh7# {[%clk 0:01:20]} 1-0


[Site "https://www.chess.com"]

[Event "Titled Tuesday Blitz April 26 Early 2022"]
[White "Xu, Yi"]
[Black "Barria Zuniga, Daniel"]
[WhiteFideId "8605564"]
[BlackFideId "3400816"]
[WhiteElo "2471"]
[BlackElo "2414"]
[Result "1-0"]
[Round "08"]
[TimeControl "180+1"]
[Date "2022.04.26"]
[WhiteClock "0:00:12"]
[BlackClock "0:00:04"]

1. e4 {[%clk 0:02:59]}  e6 {[%clk 0:02:58]} 2. d4 {[%clk 0:02:58]}  d5 {[%clk 0:02:56]} 3. Nc3 {[%clk 0:02:58]}  Bb4 {[%clk 0:02:56]} 4. e5 {[%clk 0:02:57]}  Ne7 {[%clk 0:02:55]} 5. a3 {[%clk 0:02:51]}  Bxc3+ {[%clk 0:02:55]} 6. bxc3 {[%clk 0:02:50]}  c5 {[%clk 0:02:55]} 7. h4 {[%clk 0:02:48]}  Qa5 {[%clk 0:02:54]} 8. Bd2 {[%clk 0:02:46]}  Qa4 {[%clk 0:02:53]} 9. Qb1 {[%clk 0:02:45]}  c4 {[%clk 0:02:45]} 10. h5 {[%clk 0:02:43]}  h6 {[%clk 0:02:44]} 11. g3 {[%clk 0:02:38]}  Nbc6 {[%clk 0:02:44]} 12. Rh4 {[%clk 0:02:32]}  Bd7 {[%clk 0:02:40]} 13. Bh3 {[%clk 0:02:31]}  O-O-O {[%clk 0:02:37]} 14. Ne2 {[%clk 0:02:25]}  b5 {[%clk 0:02:06]} 15. Rf4 {[%clk 0:02:18]}  Rdf8 {[%clk 0:02:04]} 16. Kf1 {[%clk 0:02:18]}  Kc7 {[%clk 0:01:58]} 17. Kg2 {[%clk 0:02:18]}  Nc8 {[%clk 0:01:58]} 18. Rf3 {[%clk 0:02:08]}  Nb6 {[%clk 0:01:56]} 19. Nf4 {[%clk 0:01:55]}  Qa5 {[%clk 0:01:51]} 20. g4 {[%clk 0:01:51]}  Nxd4 {[%clk 0:01:41]} 21. cxd4 {[%clk 0:01:39]}  Qxd2 {[%clk 0:01:39]} 22. c3 {[%clk 0:01:40]}  Na4 {[%clk 0:01:36]} 23. Qb4 {[%clk 0:01:31]}  Qb2 {[%clk 0:01:00]} 24. Qd6+ {[%clk 0:01:31]}  Kc8 {[%clk 0:01:00]} 25. Re1 {[%clk 0:01:05]}  Nxc3 {[%clk 0:00:34]} 26. Ng6 {[%clk 0:01:00]}  fxg6 {[%clk 0:00:22]} 27. Rxf8+ {[%clk 0:01:00]}  Rxf8 {[%clk 0:00:23]} 28. Qxf8+ {[%clk 0:01:00]}  Kc7 {[%clk 0:00:23]} 29. hxg6 {[%clk 0:00:40]}  Qd2 {[%clk 0:00:15]} 30. Re3 {[%clk 0:00:38]}  Qxd4 {[%clk 0:00:14]} 31. Qxg7 {[%clk 0:00:35]}  Ne4 {[%clk 0:00:12]} 32. Qf8 {[%clk 0:00:27]}  c3 {[%clk 0:00:11]} 33. g7 {[%clk 0:00:25]}  c2 {[%clk 0:00:06]} 34. g8=Q {[%clk 0:00:23]}  c1=Q {[%clk 0:00:06]} 35. Qb8+ {[%clk 0:00:21]}  Kc6 {[%clk 0:00:05]} 36. Qa8+ {[%clk 0:00:13]}  Kb6 {[%clk 0:00:04]} 37. Qgb8+ {[%clk 0:00:13]}  Ka5 {[%clk 0:00:04]} 38. Qbxa7+ {[%clk 0:00:12]}  Qxa7 {[%clk 0:00:04]} 39. Qxa7# {[%clk 0:00:12]} 1-0


[Site "https://www.chess.com"]

[Event "Titled Tuesday Blitz April 26 Early 2022"]
[White "Abdusattorov, Nodirbek"]
[Black "Ibrahimli, Murad"]
[WhiteFideId "14204118"]
[BlackFideId "13410229"]
[WhiteElo "2663"]
[BlackElo "2109"]
[Result "0-1"]
[Round "09"]
[TimeControl "180+1"]
[Date "2022.04.26"]
[WhiteClock "0:00:17"]
[BlackClock "0:00:03"]

1. c4 {[%clk 0:03:00]}  Nf6 {[%clk 0:03:00]} 2. Nc3 {[%clk 0:03:00]}  c5 {[%clk 0:03:00]} 3. g3 {[%clk 0:03:00]}  e6 {[%clk 0:02:58]} 4. Nf3 {[%clk 0:03:00]}  b6 {[%clk 0:02:58]} 5. Bg2 {[%clk 0:03:00]}  Bb7 {[%clk 0:02:58]} 6. O-O {[%clk 0:03:00]}  Be7 {[%clk 0:02:58]} 7. d4 {[%clk 0:03:00]}  cxd4 {[%clk 0:02:58]} 8. Qxd4 {[%clk 0:03:00]}  O-O {[%clk 0:02:57]} 9. Rd1 {[%clk 0:02:58]}  d6 {[%clk 0:02:53]} 10. b3 {[%clk 0:02:57]}  Nbd7 {[%clk 0:02:47]} 11. Bb2 {[%clk 0:02:53]}  a6 {[%clk 0:02:46]} 12. Rac1 {[%clk 0:02:54]}  Rc8 {[%clk 0:02:46]} 13. e4 {[%clk 0:02:25]}  Qc7 {[%clk 0:02:34]} 14. Qe3 {[%clk 0:02:24]}  Qb8 {[%clk 0:02:29]} 15. Nd4 {[%clk 0:02:24]}  Rfe8 {[%clk 0:02:23]} 16. h3 {[%clk 0:02:17]}  Qa8 {[%clk 0:02:12]} 17. Re1 {[%clk 0:02:16]}  Ne5 {[%clk 0:01:48]} 18. Rcd1 {[%clk 0:02:09]}  Nfd7 {[%clk 0:01:43]} 19. g4 {[%clk 0:02:00]}  g5 {[%clk 0:01:35]} 20. Nde2 {[%clk 0:01:54]}  Ng6 {[%clk 0:01:31]} 21. Na4 {[%clk 0:01:45]}  b5 {[%clk 0:01:25]} 22. cxb5 {[%clk 0:01:36]}  axb5 {[%clk 0:01:26]} 23. Nac3 {[%clk 0:01:37]}  b4 {[%clk 0:01:24]} 24. Na4 {[%clk 0:01:37]}  Qa5 {[%clk 0:01:18]} 25. Rc1 {[%clk 0:01:34]}  Nde5 {[%clk 0:01:12]} 26. Ng3 {[%clk 0:01:06]}  Nf4 {[%clk 0:01:08]} 27. Bf1 {[%clk 0:01:06]}  Bf6 {[%clk 0:01:05]} 28. Nh5 {[%clk 0:00:59]}  Nxh5 {[%clk 0:01:02]} 29. gxh5 {[%clk 0:01:00]}  h6 {[%clk 0:01:00]} 30. Red1 {[%clk 0:00:59]}  Rxc1 {[%clk 0:00:54]} 31. Rxc1 {[%clk 0:01:00]}  Rc8 {[%clk 0:00:53]} 32. Rd1 {[%clk 0:01:00]}  Bc6 {[%clk 0:00:49]} 33. f4 {[%clk 0:00:52]}  gxf4 {[%clk 0:00:48]} 34. Qxf4 {[%clk 0:00:53]}  Bg5 {[%clk 0:00:42]} 35. Qg3 {[%clk 0:00:54]}  Bxe4 {[%clk 0:00:39]} 36. Bg2 {[%clk 0:00:42]}  Bxg2 {[%clk 0:00:34]} 37. Qxg2 {[%clk 0:00:42]}  Kh7 {[%clk 0:00:24]} 38. Rxd6 {[%clk 0:00:42]}  Rg8 {[%clk 0:00:17]} 39. Kh1 {[%clk 0:00:37]}  Bf6 {[%clk 0:00:08]} 40. Qe4+ {[%clk 0:00:36]}  Kh8 {[%clk 0:00:08]} 41. Rd1 {[%clk 0:00:31]}  Qb5 {[%clk 0:00:08]} 42. Bd4 {[%clk 0:00:23]}  Nd7 {[%clk 0:00:07]} 43. Qf4 {[%clk 0:00:19]}  Qd5+ {[%clk 0:00:03]} 44. Kh2 {[%clk 0:00:17]}  Qg2# {[%clk 0:00:03]} 0-1


[Site "https://www.chess.com"]

[Event "Titled Tuesday Blitz April 26 Early 2022"]
[White "Allahverdiyeva, Ayan"]
[Black "Padmini, Rout"]
[WhiteFideId "13412590"]
[BlackFideId "5029295"]
[WhiteElo "1910"]
[BlackElo "2181"]
[Result "1/2-1/2"]
[Round "09"]
[TimeControl "180+1"]
[Date "2022.04.26"]
[WhiteClock "0:00:02"]
[BlackClock "0:01:13"]

1. e3 {[%clk 0:01:19]}  e5 {[%clk 0:02:50]} 2. d4 {[%clk 0:01:16]}  Nc6 {[%clk 0:02:44]} 3. Nf3 {[%clk 0:01:13]}  e4 {[%clk 0:02:44]} 4. Nfd2 {[%clk 0:01:13]}  f5 {[%clk 0:02:44]} 5. c4 {[%clk 0:01:13]}  Nf6 {[%clk 0:02:44]} 6. Nc3 {[%clk 0:01:12]}  Be7 {[%clk 0:02:40]} 7. Be2 {[%clk 0:01:11]}  O-O {[%clk 0:02:29]} 8. a3 {[%clk 0:01:08]}  Kh8 {[%clk 0:02:27]} 9. O-O {[%clk 0:01:06]}  d6 {[%clk 0:02:27]} 10. f3 {[%clk 0:01:06]}  exf3 {[%clk 0:02:22]} 11. Bxf3 {[%clk 0:01:02]}  Bd7 {[%clk 0:02:06]} 12. b4 {[%clk 0:00:57]}  Ng4 {[%clk 0:01:57]} 13. Nb3 {[%clk 0:00:45]}  Bg5 {[%clk 0:01:53]} 14. Nd5 {[%clk 0:00:19]}  Be6 {[%clk 0:01:48]} 15. Bxg4 {[%clk 0:00:18]}  fxg4 {[%clk 0:01:49]} 16. Rxf8+ {[%clk 0:00:18]}  Qxf8 {[%clk 0:01:49]} 17. Nxc7 {[%clk 0:00:18]}  Bxc4 {[%clk 0:01:41]} 18. Nxa8 {[%clk 0:00:18]}  Qxa8 {[%clk 0:01:37]} 19. e4 {[%clk 0:00:16]}  Bxb3 {[%clk 0:01:34]} 20. Qxb3 {[%clk 0:00:15]}  Nxd4 {[%clk 0:01:34]} 21. Qd3 {[%clk 0:00:15]}  Bf6 {[%clk 0:01:30]} 22. Bb2 {[%clk 0:00:12]}  Nf3+ {[%clk 0:01:28]} 23. gxf3 {[%clk 0:00:12]}  Bxb2 {[%clk 0:01:29]} 24. Rb1 {[%clk 0:00:12]}  Be5 {[%clk 0:01:28]} 25. fxg4 {[%clk 0:00:07]}  Qc8 {[%clk 0:01:28]} 26. Qf3 {[%clk 0:00:05]}  h6 {[%clk 0:01:28]} 27. Rf1 {[%clk 0:00:05]}  Qc2 {[%clk 0:01:13]} 28. Qf8+ {[%clk 0:00:04]}  Kh7 {[%clk 0:01:13]} 29. Qf5+ {[%clk 0:00:04]}  Kh8 {[%clk 0:01:12]} 30. Qf8+ {[%clk 0:00:02]}  Kh7 {[%clk 0:01:12]} 31. Qf5+ {[%clk 0:00:02]}  Kh8 {[%clk 0:01:13]} 32. Qf8+ {[%clk 0:00:02]} 1/2-1/2


[Site "https://www.chess.com"]